Cogmind - Beta 15 @@@ ROGUE MODE // 2025.06.30 @ 10:34:38 Player: Infomantis Result: Destroyed by as-34008 with Assembled Maul Performance ------------- Evolutions (0) 0 Regions Visited (2) 400 Robots Destroyed (31) 155 Value Destroyed (517) 517 Prototype IDs (0) 0 Alien Tech Used (0) 0 Bonus (0) 0 TOTAL SCORE: 1072 Bonus ------- None Cogmind --------- Core Integrity 0/250 Matter 284/300 Energy 99/100 System Corruption 0% Temperature Warm (180) Movement Core (50) Location -10/Mines Parts ------- > --- POWER (1) -------- (None) > --- PROPULSION (2) --- (None) > --- UTILITY (2) ------ (None) > --- WEAPON (2) ------- (None) > --- INVENTORY (5) ---- Compact Wheel Large Storage Unit Small Matter Pod (50) Large Matter Pod (150) Light Cannon Peak State ------------ > --- POWER ------------ Light Nuclear Core > --- PROPULSION ------- Light Treads Light Treads > --- UTILITY ---------- Small Storage Unit Seismic Detector > --- WEAPON ----------- Assault Rifle Assault Rifle > --- INVENTORY -------- Light Ion Engine Compact Wheel Improved Terrain Scanner EM Pulse Gun Medium Laser Medium Laser Assault Rifle Mining Laser [Rating: 10] Favorites ----------- Power Ion Engine Engine Ion Engine Power Core Light Nuclear Core Propulsion Light Treads Treads Light Treads Wheel Wheel Utility Seismic Detector Device Seismic Detector Storage Small Storage Unit Weapon Assault Rifle Energy Gun Medium Laser Ballistic Gun Assault Rifle Build | -11 -10 -10 ------- Run | Yrd Mat Min Slots Evolved . | . . . Power . | . . . Propulsion . | . . . Utility . | . . . Weapon . | . . . Parts Attached 15 | 7 7 1 Power 3 | 1 2 . Engine 2 | 1 1 . Core 1 | . 1 . Reactor . | . . . Propulsion 3 | 2 1 . Treads 2 | 2 . . Leg . | . . . Wheel 1 | . 1 . Hover . | . . . Flight . | . . . Utility 4 | 2 2 . Device 1 | 1 . . Storage 3 | 1 2 . Processor . | . . . Hackware . | . . . Protection . | . . . Artifact . | . . . Weapon 5 | 2 2 1 Energy Gun 2 | 2 . . Energy Cannon . | . . . Ballistic Gun 3 | . 2 1 Ballistic Cannon . | . . . Launcher . | . . . Special Weapon . | . . . Impact Weapon . | . . . Slashing Weapon . | . . . Piercing Weapon . | . . . Special Melee Weapon . | . . . Unidentified Prototypes . | . . . Parts Lost 6 | . 3 3 Power 2 | . 1 1 Propulsion 2 | . 1 1 Utility 1 | . . 1 Weapon 1 | . 1 . Highest Loss Streak 3 | . 1 3 To Critical Strikes . | . . . Average Backups 8 | 3 10 13 Power . | . . . Propulsion . | . 1 1 Utility 2 | . 2 4 Weapon 4 | 1 5 6 Tool/Special . | . . . Unused Backups 13 | . 2 11 Power . | . . . Propulsion 2 | . 1 1 Utility 4 | . 1 3 Weapon 5 | . . 5 Tool/Special 2 | . . 2 Average Slot Usage (%) 98 | . 99 85 Engine 9 | . 9 8 Core 3 | . 3 . Treads 23 | . 24 14 Wheel 3 | . 2 14 Device 13 | . 14 5 Storage 14 | . 14 14 Energy Gun 3 | . 2 14 Ballistic Gun 24 | . 25 14 Peak Build Rating 10 | 8 10 8 Average Rating 7 | 6 8 6 On Entrance 5 | . 8 8 Naked Turns . | . . . Heaviest Build 28 | 15 28 28 Greatest Support 40 | 40 40 10 Greatest Overweight (x) 2 | . 2 2 Average Overweight (x) . | . . 1 Largest Inventory Capacity 15 | 8 15 15 Average Capacity 10 | 7 11 15 Most Carried 14 | 7 14 13 Average Carried 8 | 3 10 13 Final Capacity 15 | 8 15 5 Final Carried 13 | 7 13 5 Class Distribution -------------------- 100% | Mutant Dominant Class ---------------- Mutant | -10/Materials Mutant | -10/Mines Resources | -11 -10 -10 ----------- Run | Yrd Mat Min Matter Collected 849 | 270 555 24 Remotely . | . . . Salvage Created 1027 | 362 593 72 Parts 65 | 26 39 . Haulers Intercepted 1 | . 1 . Recyclers Shooed 1 | 1 . . Parts Field Recycled . | . . . Retrieved Matter . | . . . Parts Self-Destructed . | . . . Prevented . | . . . Kills | -11 -10 -10 ------- Run | Yrd Mat Min Combat Hostiles Destroyed 19 | . 13 6 Guns 19 | . 13 6 Classes Destroyed 9 | 3 5 1 Worker 4 | 4 . . Tunneler 10 | 9 1 . Hauler 1 | . 1 . Recycler 1 | 1 . . Mechanic 1 | . 1 . Watcher 1 | . 1 . Swarmer 3 | . 3 . Grunt 10 | . 10 . Assembled 6 | . . 6 Best Kill Streak 6 | 3 5 6 Combat Bots Only 6 | . 5 6 Max Kills in Single Turn 1 | 1 1 1 Gunslinging . | . . . Exploded . | . . . Melee . | . . . Uniques/NPCs Destroyed . | . . . Combat | -11 -10 -10 -------- Run | Yrd Mat Min Hostile Shots Fired 109 | . 81 28 Missed 24 | . 19 5 Hits 85 | . 62 23 Melee 5 | . . 5 Projectile 80 | . 62 18 Critical Strikes 1 | . 1 . Damage Taken 1046 | . 666 380 Core 254 | . 124 130 Absorbed by Shields . | . . . Core Remaining (%) 100 | 100 . . Volleys Fired 85 | 22 48 15 Largest 2 | 2 2 2 Hottest 100 | 100 40 70 Shots Fired 168 | 44 94 30 Gun 168 | 44 94 30 Cannon . | . . . Launcher . | . . . Special . | . . . Kinetic 109 | . 94 15 Thermal 59 | 44 . 15 Explosive . | . . . Electromagnetic . | . . . Robot Hit Streak 12 | 6 12 8 Robot Miss Streak 4 | 2 4 3 Penetration Max . | . . . Secondary Targets 3 | . 1 2 Max Gunslinging Chain 1 | . 1 1 Shots Hit Robots 102 | 23 58 21 Core Hits 59 | 15 31 13 Critical Kills . | . . . Critical Parts Destroyed . | . . . Critical Strikes 4 | 4 . . Burn 4 | 4 . . Melee Attacks . | . . . Impact . | . . . Slashing . | . . . Piercing . | . . . Sneak Attacks . | . . . Combat Hostiles . | . . . Follow-up Attacks . | . . . Damage Inflicted 1316 | 290 751 275 Guns 1313 | 290 748 275 Cannons . | . . . Explosions . | . . . Melee . | . . . Ramming 3 | . 3 . Kinetic 886 | . 748 138 Thermal 427 | 290 . 137 Explosive . | . . . Electromagnetic . | . . . Impact . | . . . Slashing . | . . . Piercing . | . . . Highest Corruption . | . . . Average Corruption . | . . . Corruption Purged . | . . . Corruption Blocked . | . . . Overload Shots . | . . . Overflow Damage . | . . . Projectiles . | . . . Explosions . | . . . Melee . | . . . Knockbacks . | . . . Impact . | . . . Kinetic . | . . . Secondary . | . . . Self-Inflicted Damage . | . . . Shots . | . . . Rammed 1 | . 1 . Targets Rammed 1 | . 1 . Kicked . | . . . Crushed . | . . . Highest Temperature 215 | 215 11 192 Average Temperature 63 | 55 4 103 Received Heat Transfer 492 | . 312 180 Siege Activations . | . . . Martial Activations . | . . . Shielding Activations . | . . . Robots Disrupted . | . . . Combat Hostiles . | . . . Robots Corrupted . | . . . Combat Hostiles . | . . . Parts Fried . | . . . Impact Corruptions . | . . . Robots Melted . | . . . Combat Hostiles . | . . . Parts Melted 5 | 5 . . Heat Transferred 1554 | 1147 . 407 Parts Sabotaged . | . . . Parts Stolen . | . . . Parts Stripped . | . . . Power Chain Reactions . | . . . Alert | -11 -10 -10 ------- Run | Yrd Mat Min Maximum Alert Level . | . . . Low Security (%) 100 | 100 100 100 Level 1 . | . . . Level 2 . | . . . Level 3 . | . . . Level 4 . | . . . Level 5 . | . . . High Security . | . . . Max Security . | . . . Peak Influence 109 | 10 109 39 Initial 39 | . . 39 Average 26 | 1 39 17 Influence Increases 516 | 70 446 . Destroy 0b10 Robot/C 260 | . 260 . Destroy 0b10 Robot/NC 90 | 70 20 . Destroy Leader 64 | . 64 . Successful Hack 25 | . 25 . Select Force Hacks 60 | . 60 . Disable Machine 15 | . 15 . Destroy Structure 2 | . 2 . Influence Decreases 516 | 70 343 103 Entered New Map 64 | . . 64 Time Decay 412 | 70 323 19 Lost Part 40 | . 20 20 Squads Dispatched 6 | . 6 . Investigation 4 | . 4 . Extermination . | . . . Reinforcement 2 | . 2 . Assault . | . . . Garrison . | . . . Intercept . | . . . Searches Triggered . | . . . Construction Impeded . | . . . Haulers Reinforced . | . . . Active Scanning Responses . | . . . Cargo Convoy Interrupts . | . . . Stealth | -11 -10 -10 --------- Run | Yrd Mat Min Distress Signals 2 | . 2 . Communications Jammed . | . . . Distress Signals . | . . . Times Spotted 29 | . 21 8 Peak Tracking Total 5 | . 5 5 Tactical Retreats 1 | . . 1 Traps | -11 -10 -10 ------- Run | Yrd Mat Min Traps Triggered 2 | . 2 . Indirectly . | . . . Trap Hack Attempts . | . . . Triggered . | . . . Disarmed . | . . . Reprogrammed . | . . . Reused . | . . . Traps Extracted . | . . . Installed . | . . . Triggered . | . . . Machines | -11 -10 -10 ---------- Run | Yrd Mat Min Machines Disabled 1 | . 1 . Max in Single Turn 1 | . 1 . Machines Repaired . | . . . Machines Dismantled . | . . . Machines Sabotaged . | . . . Overloaded Fab Kills . | . . . Hacking | -11 -10 -10 --------- Run | Yrd Mat Min Machines Accessed 7 | . 7 . Terminals 5 | . 5 . Fabricators . | . . . Repair Stations . | . . . Recycling Units 2 | . 2 . Scanalyzers . | . . . Garrison Access . | . . . Total Hacks 18 | . 18 . Successful 9 | . 9 . Failed 9 | . 9 . Catastrophic . | . . . Database Lockouts . | . . . Manual 14 | . 14 . Terminals 16 | . 16 . Fabricators . | . . . Repair Stations . | . . . Recycling Units 2 | . 2 . Scanalyzers . | . . . Garrison Access . | . . . Terminal Hacks 3 | . 3 . Branch Access Points 1 | . 1 . Locate Traps 1 | . 1 . Registered Components 1 | . 1 . Fabricator Hacks . | . . . Repair Station Hacks . | . . . Recycling Unit Hacks . | . . . Scanalyzer . | . . . Garrison Access Hacks . | . . . Unauthorized Hacks 6 | . 6 . Terminals 4 | . 4 . Botnet 1 | . 1 . Skim 3 | . 3 . Fabricators . | . . . Repair Stations . | . . . Recycling Units 2 | . 2 . Tunnel 2 | . 2 . Scanalyzers . | . . . Garrison Access . | . . . Data Cores Recovered . | . . . Used . | . . . Hacking Detections 5 | . 5 . Full Trace Events 1 | . 1 . Feedback Events . | . . . Feedback Blocked . | . . . Robot Schematics Acquired . | . . . Robots Built . | . . . Authchips . | . . . Time . | . . . Total Robot Build Rating . | . . . Part Schematics Acquired . | . . . Parts Built . | . . . Authchips . | . . . Time . | . . . Total Part Build Rating . | . . . Parts Repaired . | . . . Time . | . . . Parts Recycled . | . . . Recycled Matter . | . . . Retrieved Matter . | . . . Retrieved Components . | . . . Parts Scanalyzed . | . . . Part Schematics Acquired . | . . . Parts Damaged . | . . . Bothacking | -11 -10 -10 ------------ Run | Yrd Mat Min Used RIF Installer . | . . . Robots Hacked . | . . . Non-combat . | . . . Combat . | . . . Robot Hacks Applied . | . . . Relay Couplers Released . | . . . Fabnet Peak Effective % . | . . . Robots Rewired . | . . . Allies Hacked . | . . . Hacks Repelled . | . . . Allies | -11 -10 -10 -------- Run | Yrd Mat Min Total Allies . | . . . Largest Group . | . . . Highest-Rated Group . | . . . Highest-Rated Ally . | . . . Total Orders . | . . . Ally Attacks . | . . . Total Damage . | . . . Kills . | . . . Allies Corrupted . | . . . Allies Melted . | . . . Intel | -11 -10 -10 ------- Run | Yrd Mat Min Active Infowar (turns) 1466 | 338 1106 22 Seismic 1466 | 338 1106 22 Robot Analysis Total . | . . . Derelict Logs Recovered . | . . . Drone Launches . | . . . Drone Recoveries . | . . . Exploration | -11 -10 -10 ------------- Run | Yrd Mat Min Turns Passed 1720 | 550 1106 64 Spaces Moved 863 | 231 621 11 Core 9 | 8 . 1 Treads 665 | 223 442 . Legs . | . . . Wheels 189 | . 179 10 Hover . | . . . Flight . | . . . Fastest Speed 50 | 50 110 50 Average Speed 149 | 156 147 104 Slowest Speed 240 | 160 240 110 Overloaded Moves . | . . . Propulsion Burnouts . | . . . Robots Hopped . | . . . Potential Cave-ins . | . . . Cave-ins Triggered . | . . . Exploration Rate (%) 32 | 5 88 3 Regions Visited 2 Branch Regions 1 Pre-discovered Areas 2 | . 2 . Known Exits Taken 1 | . 1 . Unknown Exits Taken 1 | 1 . . Scrap Searched . | . . . Spaces Dug . | . . . Terrain Destroyed . | . . . Melee . | . . . Projectile . | . . . AOE . | . . . Terrain Rammed . | . . . Walls Destroyed . | . . . Machines Disabled . | . . . Actions | -11 -10 -10 --------- Run | Yrd Mat Min Total 1124 | 374 717 33 Wait 137 | 106 25 6 Move 861 | 230 620 11 Hop . | . . . Pick Up 18 | 9 9 . Fast Attach 8 | 5 3 . Attach 4 | 2 2 . Detach . | . . . Swap 5 | . 4 1 Drop 5 | . 5 . Fire 85 | 22 48 15 Melee . | . . . Ram . | . . . Kick . | . . . Crush 1 | . 1 . Escape Stasis . | . . . Rewire . | . . . Trap . | . . . Miscellaneous . | . . . Route ------- -11/Scrapyard -10/Materials (discovered 3 exits: [*Mat x2] / *Min) -10/Mines History --------- Turn | Location | Event 5 | -11/Scrapyard | Discovered new exit (range 14) 551 | -11/Scrapyard | Entered Materials 552 | -10/Materials | Build established: Mutant 795 | -10/Materials | Identified exit to Mines 993 | -10/Materials | Discovered new exit (range 8) 1351 | -10/Materials | Discovered new exit (range 11) 1657 | -10/Materials | Entered Mines 1658 | -10/Mines | Assembled infested the area 1663 | -10/Mines | Assisted by a Guerilla fighting off Assembled 1688 | -10/Mines | Core integrity fell below 50% 1718 | -10/Mines | Core integrity fell below 20% 1721 | -10/Mines | Released all parts (4) 1721 | -10/Mines | Destroyed by as-34008 with Assembled Maul Last Messages --------------- 01679_ Seismic Detector destroyed. 01679_ as-54952 destroyed. 01679_ Switching to secondary target: as-45039. 01682_ as-45039 destroyed. 01683_ Acquired 13 matter. 01688_ as-91331 destroyed. 01694_ Lgt. Ion Engine destroyed. 01698_ Core Extractor disabled. 01700_ as-82607 destroyed. 01700_ Switching to secondary target: as-12362. 01706_ as-12362 destroyed. 01715_ as-39435 destroyed. 01720_ Wheel destroyed. 01721_ Released Med. Laser. 01721_ Released Lrg. Storage Unit. 01721_ Released Lgt. Treads. 01721_ Lgt. Treads crushed and broken. 01721_ Released Assault Rifle. 01721_ Assault Rifle crushed and broken. 01721_ Acquired 11 matter. Map ----- +----------------------------------------------------+ | ???????????????????????????????? | | ???????????????????????????????? | | ???????????????????????????????? | | ???????????????????????????????? | | ???????????????????????????????? | | ???????????????????????????????? | | ???????????????????????????????? | | ???????????????????????????????? | | ???????????????????????????????? | | ???????????????????????????????? | | ???????????????????????????????? | | ???????????????????????????????? | | ?????????????????#?????????????? | | ?????????????????# ????????????? | | ?????????????????? ????????????? | | ?????????????????? ????????????? | | ?????????????????? ????????????? | | ?????????????????? ???????????? | | ??????????????????? ???????????? | | ??????????????????? ???????????? | | ??????????????????? ???????????? | | ???????????????????# ??????????? | | ???????????????????# ??????????? | | ???????????????????# ??????????? | | ??????????????????##%#######???? | | ??????????????????#!%!/%[@[#???? | | ??????????????????# = [""aa#???? | | ??????????????????# """/#???? | | ??????????????????# """%#???? | | ??????????????????# !/|#???? | | ??????????????????##########???? | | ???????????????????????????????? | | ???????????????????????????????? | | ???????????????????????????????? | | ???????????????????????????????? | | | | | | | | | | | | | | | | | | | | | | | | | | | | | | | +----------------------------------------------------+ Best States ------------- Heat Dissipation 25 Energy Generation 14 Energy Capacity 250 Matter Stores 300 Matter Capacity 300 Sight Range 16 Terrain Scan Density 10 Evasion (%) 40 Recoil Reduction 2 Item Schematics ----------------- None Robot Schematics ------------------ None Fabricated ------------ Nothing Repaired ---------- Nothing Alien Tech Used ----------------- None Achievements -------------- None Challenges ------------ None Game ------ Seed VortexDeepArray Manual? 0 Play Time 00:11:51 Cumulative 538.3 hours Start 2025.06.29 @ 19:17:52 End 2025.06.30 @ 10:34:38 Sessions 2 Manual Loads 0 Difficulty Rogue Special Mode None Game No. 315 Rogue 290 Adventurer 7 Explorer 18 Win Type - Total 42 Types 26/0/8/2/0/1/1/2/0/2 Lore% 94 Gallery% 90 Achievement% 81 Wizard Run 0 Options --------- Layout 0 ASCII 0 Keyboard 0 Movement Numpad Keybinds 0 Fullscreen 1 Font 12/Smallcaps Map View 83x54 Zoom Use 0% Tactical HUD 1 Map Filters NONE Filters NONE Steam 1 RUN: 196e13fb-cd28-410b-9c79-520e8adb73e4